bitfinex/quotes_ETHUSD_20251201
["timestamp","ask_amount","ask_price","bid_price","bid_amount"]
[1764591123985,0.405504,2826.0,2825.8,3.53880091]
[1764591124805,0.405504,2825.8,2825.7,3.76594303]
[1764591125197,0.405504,2825.9,2825.7,3.76594303]
[1764591125593,0.4786,2825.8,2825.6,3.53905951]
[1764591125898,0.405504,2825.7,2825.5,3.54014763]
[1764591126093,0.405504,2825.7,2825.5,7.07934423]
[1764591126295,0.95259411,2826.7,2825.5,7.07934423]
[1764591126296,3.725,2827.1,2825.6,0.1741]
[1764591126495,0.09989793,2826.6,2825.7,0.4011]
[1764591126698,0.4524,2826.8,2825.8,10.61646258]
[1764591126905,0.4524,2826.8,2825.9,1.65994034]
[1764591127221,0.405504,2826.5,2825.9,1.43294034]
[1764591127384,0.405504,2826.5,2826.0,0.227]
[1764591127581,0.405504,2826.2,2826.1,0.227]
[1764591128106,0.405504,2826.2,2825.6,3.53907134]
[1764591128107,1.336504,2826.2,2825.6,3.53907134]
[1764591128426,0.405504,2825.8,2825.6,3.53907134]
[1764591128631,0.50540193,2825.8,2825.7,0.227]
[1764591128800,0.405504,2825.9,2825.6,3.53906311]
[1764591129006,0.405504,2825.8,2825.6,7.07813445]
[1764591129343,0.405504,2825.8,2825.6,3.76606311]
[1764591129526,0.405504,2825.8,2825.6,7.30513445]
[1764591129842,0.405504,2825.8,2825.6,3.76606311]
[1764591130039,0.405504,2825.6,2825.5,3.76713748]
[1764591130420,0.405504,2825.7,2825.5,3.76713748]
[1764591131141,0.405504,2825.7,2825.5,7.30633408]
[1764591131308,0.405504,2825.8,2825.5,7.30633408]
[1764591131838,0.857904,2825.8,2825.5,7.30633408]
[1764591132745,0.857904,2825.8,2825.6,0.001]
[1764591133245,0.405504,2825.8,2825.6,0.001]
[1764591133539,0.405504,2826.3,2825.7,0.1741]
[1764591133741,0.405504,2826.0,2825.7,0.1741]
[1764591134241,0.405504,2826.0,2825.6,0.001]
[1764591134538,0.857904,2826.0,2825.6,0.001]
[1764591134839,0.857904,2826.0,2825.7,0.227]
[1764591135051,0.4524,2825.9,2825.6,0.001]
[1764591135208,0.98400193,2825.7,2825.6,3.54007134]
[1764591135634,1.43640193,2825.7,2825.6,3.54007134]
[1764591136635,1.336504,2825.7,2825.6,3.54007134]
[1764591136832,1.336504,2825.7,2825.6,0.001]
[1764591138333,0.884104,2825.7,2825.6,0.001]
[1764591138645,1.336504,2825.7,2825.6,0.001]
[1764591139841,1.53629987,2825.7,2825.6,0.001]
[1764591141242,5.58275847,2825.7,2825.6,0.001]
[1764591141442,1.336504,2825.7,2825.6,0.001]
[1764591141809,4.8754501,2825.7,2825.6,0.001]
[1764591142012,1.336504,2825.7,2825.6,0.001]
[1764591142213,1.43640193,2825.7,2825.6,0.001]
[1764591142413,1.85672007,2825.7,2825.6,0.001]
[1764591142635,5.39566617,2825.7,2825.6,0.001]
[1764591143318,5.39486617,2825.7,2825.6,0.001]
[1764591143934,26.39944821,2825.7,2825.6,0.001]
[1764591144263,26.39944821,2825.7,2823.1,0.1749]
[1764591144264,30.0,2825.5,2823.1,0.1749]
[1764591144462,0.1109,2824.3,2823.2,14.1683196]
[1764591144663,0.4974,2824.8,2823.2,10.8011397]
[1764591144827,0.405504,2824.4,2823.3,0.1749]
[1764591145244,0.901704,2824.4,2823.3,0.1749]
[1764591145646,0.901704,2824.4,2823.4,14.167316]
[1764591145853,0.405504,2824.4,2823.5,1.6612216]
[1764591146049,0.405504,2824.4,2823.5,1.8361216]
[1764591146253,0.405504,2824.4,2823.6,0.1749]
[1764591146769,0.4962,2825.3,2824.3,0.1749]
[1764591146941,0.405504,2824.7,2824.4,0.1749]
[1764591147136,0.405504,2825.2,2824.4,0.1749]
[1764591147371,0.405504,2824.8,2824.4,0.1749]
[1764591147749,0.405504,2824.8,2824.5,7.08089926]
[1764591148055,0.405504,2825.1,2824.5,7.08089926]
[1764591148259,0.19979587,2824.8,2824.5,7.08089926]
[1764591148458,0.19979587,2824.8,2824.5,3.54044963]
[1764591148670,0.19979587,2824.8,2824.3,0.227]
[1764591148671,0.405504,2824.2,2823.8,0.227]
[1764591148971,0.405504,2824.2,2823.8,1.10266344]
[1764591149338,0.4687,2824.5,2823.7,0.227]
[1764591149339,0.405504,2824.0,2823.7,0.227]
[1764591149670,0.405504,2824.0,2823.8,3.54132728]
[1764591150239,0.405504,2824.0,2823.8,7.08265456]
[1764591150441,0.4603,2823.9,2823.7,0.227]
[1764591150655,0.405504,2823.8,2823.2,3.54204237]
[1764591150879,0.09989793,2823.6,2823.3,0.37169424]
[1764591151088,0.405504,2823.5,2823.3,0.37169424]
[1764591151377,0.405504,2823.4,2822.5,0.1749]
[1764591151555,0.405504,2823.5,2822.6,0.1749]
[1764591151755,0.405504,2823.8,2822.7,14.39782932]
[1764591152057,0.405504,2823.8,2822.8,1.45727293]
[1764591152261,0.405504,2823.6,2823.3,0.001]
[1764591152666,0.96570193,2823.4,2823.3,0.001]
[1764591153188,1.334504,2823.4,2823.3,0.001]
[1764591153358,1.43440193,2823.4,2823.3,0.001]
[1764591153571,0.09989793,2823.8,2823.4,7.083658]
[1764591153769,0.1838,2824.3,2823.5,0.7259558]
[1764591154109,0.405504,2823.9,2823.6,0.228]
[1764591154276,0.405504,2824.0,2823.6,0.228]
[1764591154664,0.09989793,2824.1,2823.6,0.4029]
[1764591155378,0.09989793,2824.1,2823.6,0.228]
[1764591155584,0.09989793,2824.1,2823.6,1.4882487]
[1764591155792,0.09989793,2824.1,2823.7,7.0829054]
[1764591155962,0.09989793,2824.5,2824.0,0.1749]
[1764591156168,0.405504,2824.4,2824.1,0.228]
[1764591156366,0.09989793,2824.5,2823.8,0.1749]
[1764591156676,0.09989793,2824.5,2823.9,1.30792581]
[1764591157077,0.405504,2824.4,2823.9,1.30792581]
[1764591157262,0.405504,2824.4,2823.9,1.07992581]
[1764591157469,0.405504,2824.4,2823.7,3.5414527]
[1764591157470,0.405504,2823.9,2823.7,3.5414527]
[1764591157768,0.405504,2823.9,2823.8,0.228]
[1764591157989,0.50540193,2824.3,2823.8,3.76932728]
[1764591158194,0.405504,2824.3,2823.8,3.54132728]
[1764591158525,0.09989793,2823.9,2823.4,7.083658]
[1764591158682,0.09989793,2823.9,2823.5,0.228]
[1764591160108,0.09989793,2823.9,2823.6,7.08315624]
[1764591160481,0.405504,2824.1,2823.6,7.08315624]
[1764591160681,0.1838,2824.8,2823.6,7.08315624]
[1764591160682,0.4687,2824.5,2823.7,1.08528196]
[1764591160914,0.405504,2824.4,2823.7,1.26018196]
[1764591161114,0.50540193,2824.4,2823.7,1.08528196]
[1764591161308,0.405504,2824.2,2823.7,1.08528196]
[1764591161501,0.405504,2824.2,2823.8,1.17100163]
[1764591161707,0.405504,2824.2,2823.9,0.228]
[1764591162211,0.405504,2824.2,2824.0,7.08215296]
[1764591163310,0.405504,2824.4,2824.0,3.54107648]
[1764591163517,0.09989793,2824.7,2824.1,0.1749]
[1764591163715,0.09989793,2824.7,2824.2,0.228]
[1764591164036,0.405504,2824.6,2824.3,0.228]
[1764591164232,0.405504,2824.6,2824.3,3.76862693]
[1764591164528,0.4603,2824.4,2824.3,0.228]
[1764591164692,0.405504,2824.4,2824.3,3.76870035]
[1764591165100,0.96570193,2824.4,2824.3,3.76870035]
[1764591165307,0.96570193,2824.4,2824.3,0.228]
[1764591165514,0.96570193,2824.4,2824.3,3.76870035]
[1764591165892,0.50540193,2824.4,2824.3,0.4029]
[1764591166110,0.405504,2824.4,2824.3,3.94360035]
[1764591166311,0.404704,2824.4,2824.3,3.94360035]
[1764591166933,0.404704,2824.4,2824.3,3.71560035]
[1764591167139,0.404704,2824.4,2824.3,3.54070035]
[1764591168141,0.09989793,2824.5,2824.2,0.228]
[1764591168329,0.405504,2824.3,2824.1,3.54089008]
[1764591168647,0.405504,2824.3,2824.2,0.227]
[1764591169349,0.1838,2824.8,2824.2,0.227]
[1764591169350,0.405504,2824.7,2824.2,0.1749]
[1764591169561,0.09989793,2824.5,2824.2,0.4019]
[1764591169916,0.56019793,2824.3,2824.0,0.227]
[1764591170242,0.865804,2824.1,2824.0,0.227]
[1764591170420,0.865804,2824.1,2823.9,0.227]
[1764591170421,0.405504,2824.0,2823.9,0.227]
[1764591170850,0.405504,2824.1,2823.9,0.4019]
[1764591171220,0.405504,2824.1,2823.9,0.227]
[1764591171567,0.405504,2823.6,2823.5,0.001]
[1764591171917,0.405504,2823.6,2823.5,0.1759]
[1764591172117,0.96570193,2823.6,2823.5,0.001]
[1764591173321,0.405504,2823.7,2823.5,0.001]
[1764591173644,0.55289793,2823.6,2823.5,0.001]
[1764591174244,0.453,2823.6,2823.5,0.001]
[1764591174418,0.405504,2823.6,2823.5,0.001]
[1764591174619,1.43830193,2823.6,2823.5,0.001]
[1764591174816,0.50540193,2823.6,2823.5,0.1759]
[1764591175033,0.50540193,2823.6,2823.5,0.72697882]
[1764591175427,0.09989793,2823.8,2823.5,0.95497882]
[1764591175626,0.09989793,2823.7,2823.5,0.95497882]
[1764591175837,0.453,2823.6,2823.5,0.95497882]
[1764591176037,0.09989793,2823.7,2823.5,0.72697882]
[1764591176239,0.405504,2823.9,2823.5,0.72697882]
[1764591176240,0.09989793,2823.8,2823.5,0.90187882]
[1764591176449,0.405504,2823.7,2823.5,4.44352789]
[1764591177152,0.858504,2823.6,2823.5,0.72697882]
[1764591177315,0.858504,2823.6,2823.5,0.001]
[1764591177517,1.338404,2823.6,2823.5,0.001]
[1764591178322,0.405504,2823.6,2823.5,0.001]
[1764591178521,0.50540193,2823.6,2823.5,3.54270355]
[1764591178949,0.50540193,2823.6,2823.5,3.71760355]
[1764591178950,0.405504,2823.6,2823.5,3.71760355]
[1764591179149,0.405504,2823.6,2823.5,4.46634572]
[1764591180024,0.19979587,2824.3,2823.5,11.72465282]
[1764591180218,0.6637,2824.8,2823.6,0.1749]
[1764591180424,0.09989793,2824.4,2823.7,7.0829054]
[1764591180662,0.405504,2824.3,2823.8,1.30793379]
[1764591180848,0.1838,2824.8,2824.3,0.1749]
[1764591181159,0.38129587,2825.3,2824.7,0.1749]
[1764591181462,0.38129587,2825.3,2824.8,0.4029]
[1764591181620,0.1815,2825.3,2824.8,0.4029]
[1764591181822,0.19979587,2825.5,2824.9,0.1749]
[1764591182047,0.67969587,2825.5,2824.8,0.228]
[1764591182565,0.09989793,2825.4,2824.9,7.00518662]
[1764591182724,0.09989793,2825.4,2824.9,3.46523831]
[1764591182918,0.57979793,2825.4,2824.9,3.46523831]
[1764591183168,0.57979793,2825.4,2825.0,0.227]
[1764591183334,0.57979793,2825.4,2824.9,3.46523831]
[1764591183532,0.453,2825.0,2824.6,0.227]
[1764591183821,0.405504,2825.0,2824.6,0.228]
[1764591184224,0.405504,2825.0,2824.6,0.4029]
[1764591184419,0.4799,2825.4,2824.9,3.71484831]
[1764591184627,0.002,2825.6,2824.9,3.71484831]
[1764591184628,0.405504,2825.1,2824.9,3.71484831]
[1764591184876,0.4819,2825.6,2824.9,7.64377145]
[1764591185029,0.405504,2825.4,2825.0,0.1749]
[1764591185234,0.405504,2825.5,2824.3,0.1749]
[1764591185457,0.405504,2825.1,2824.4,0.228]
[1764591185662,0.405504,2824.8,2824.4,0.228]
[1764591185862,0.405504,2824.9,2824.4,0.228]
[1764591186183,0.405504,2825.3,2824.7,0.1749]
[1764591186470,0.405504,2825.0,2824.8,7.08014726]
[1764591186858,0.405504,2825.0,2824.8,3.54007363]
[1764591187275,0.405504,2825.0,2824.8,7.08014726]
[1764591187844,0.407504,2825.6,2824.9,0.1749]
[1764591188155,0.407504,2825.6,2824.8,7.30814726]
[1764591188156,0.405504,2825.2,2824.8,7.30814726]
[1764591188462,0.405504,2825.2,2824.8,3.76807363]
[1764591188662,0.405504,2825.0,2824.9,0.227]
[1764591189166,0.405504,2824.8,2824.7,0.227]
[1764591189468,0.404704,2824.8,2824.7,0.227]
[1764591189663,1.337604,2824.8,2824.5,7.08089926]
[1764591189871,1.337604,2824.8,2824.5,7.30789926]
[1764591190070,1.337604,2824.8,2824.5,7.30889926]
[1764591190243,0.857704,2824.8,2824.5,7.30889926]
[1764591191239,0.10189793,2825.1,2824.7,0.1749]
[1764591191447,0.405504,2825.0,2824.8,0.1749]
[1764591191674,0.002,2825.1,2824.8,0.1749]
[1764591191965,0.002,2825.1,2824.9,0.1749]
[1764591192135,0.407504,2825.1,2824.9,0.4019]
[1764591193074,0.407504,2825.1,2824.5,0.001]
[1764591193075,0.405504,2824.9,2824.5,0.001]
[1764591193276,0.405504,2824.9,2824.6,0.227]
[1764591195175,0.405504,2824.9,2824.7,3.54019895]
[1764591195366,0.405504,2824.9,2824.7,7.0803979]
[1764591196978,0.405504,2824.9,2824.8,0.227]
[1764591197273,0.405504,2824.9,2824.8,3.94197363]
[1764591197479,0.002,2825.1,2824.8,3.94197363]
[1764591197675,0.002,2825.1,2824.8,3.76707363]
[1764591197878,0.858504,2824.9,2824.8,3.76707363]
[1764591198880,0.405504,2824.9,2824.8,3.76707363]
[1764591199278,0.405504,2824.9,2824.8,3.94197363]
[1764591200555,0.002,2825.1,2824.8,7.65694726]
[1764591200744,0.002,2825.1,2825.0,0.1749]
[1764591201657,0.002,2825.1,2825.0,3.714723]
[1764591204286,0.002,2825.1,2825.0,3.889623]
[1764591204507,0.002,2825.1,2825.0,3.714723]
[1764591205003,0.002,2825.1,2825.0,4.63778835]
[1764591205678,0.002,2825.1,2825.0,4.46288835]
[1764591207883,0.002,2825.1,2825.0,4.63778835]
[1764591208285,0.002,2825.1,2825.0,4.46288835]
[1764591209098,0.405504,2825.0,2824.9,0.227]
[1764591209301,0.9631,2825.1,2825.0,0.1749]
[1764591209302,0.002,2825.1,2825.0,0.1749]
[1764591210078,0.002,2825.1,2824.9,0.227]
[1764591210604,0.405504,2824.9,2824.8,0.228]
[1764591210899,1.071704,2824.9,2824.8,3.76807363]
[1764591211099,1.542804,2824.9,2824.8,3.76807363]
[1764591211901,1.071704,2824.9,2824.8,3.76807363]
[1764591212104,1.071704,2824.9,2824.8,3.54107363]
[1764591212301,1.070904,2824.9,2824.8,3.76807363]
[1764591213484,0.894704,2824.9,2824.8,3.76807363]
[1764591214011,0.002,2825.1,2824.8,7.48304726]
[1764591214207,0.6791,2824.9,2824.8,3.54107363]
[1764591214414,1.084604,2824.9,2824.8,3.76807363]
[1764591214613,1.555704,2824.9,2824.8,3.76807363]
[1764591215314,1.084604,2824.9,2824.8,3.76807363]
[1764591215486,0.405504,2824.9,2824.8,4.67379945]
[1764591216206,0.405504,2824.9,2824.8,4.49889945]
[1764591216409,0.405504,2824.9,2824.8,3.76807363]
[1764591216633,0.895504,2824.9,2824.8,3.76807363]
[1764591217312,0.895504,2824.9,2824.2,4.26639939]
[1764591217313,0.405504,2824.7,2822.6,17.7141642]
[1764591217499,0.405504,2824.3,2823.1,0.1769]
[1764591217706,0.405504,2824.4,2823.2,1.12296848]
[1764591218103,0.405504,2824.4,2823.3,0.1769]
[1764591218584,0.405504,2824.2,2823.3,0.1769]
[1764591218910,0.876604,2824.4,2823.3,0.1769]
[1764591219102,0.876604,2824.4,2823.4,10.625487]
[1764591219303,0.405504,2824.4,2823.5,1.0802387]
[1764591219498,0.405504,2824.2,2823.6,0.227]
[1764591219703,0.405504,2824.7,2823.6,0.227]
[1764591219904,0.405504,2824.4,2823.6,0.4039]
[1764591220915,0.09989793,2824.8,2824.3,0.1769]
[1764591221097,0.1891,2824.9,2824.4,7.08114996]
[1764591221286,0.10189793,2825.1,2824.4,10.62172494]
[1764591221489,0.10189793,2825.1,2823.5,3.54159414]
[1764591221490,0.6791,2824.5,2823.5,3.54159414]
[1764591221816,0.405504,2824.2,2823.5,11.33335258]
[1764591223593,0.405504,2824.2,2823.5,14.87505613]
[1764591223925,0.4711,2824.3,2823.5,11.33335258]
[1764591224099,0.4711,2824.3,2823.5,14.87505613]
[1764591224501,0.405504,2824.2,2823.5,11.33335258]
[1764591224806,0.405504,2824.2,2823.7,10.6243581]
[1764591225006,0.405504,2824.2,2823.8,0.227]
[1764591225315,0.876604,2824.2,2823.8,0.227]
[1764591226315,0.4711,2824.1,2823.8,0.227]
[1764591226527,0.895504,2823.9,2823.8,0.227]
[1764591227225,0.895504,2823.9,2823.8,3.76832728]
[1764591227627,0.405504,2823.9,2823.8,3.94522728]
[1764591227826,0.405504,2824.4,2823.8,11.77754984]
[1764591229212,0.405504,2824.7,2824.3,0.1769]
[1764591229522,0.6602,2824.8,2824.2,0.227]
[1764591229698,0.405504,2824.6,2824.2,0.227]
[1764591229897,0.405504,2824.7,2824.2,0.227]
[1764591230319,0.4711,2824.7,2824.2,0.227]
[1764591230902,0.002,2824.9,2824.3,0.1769]
[1764591231102,0.002,2824.9,2824.8,0.1769]
[1764591231330,0.002,2824.9,2824.8,3.71697363]
[1764591232330,0.002,2824.9,2824.8,3.54007363]
[1764591232934,0.002,2824.9,2824.8,3.71697363]
[1764591233674,0.405504,2824.8,2824.7,3.54018305]
[1764591233836,1.327004,2824.8,2824.7,3.54018305]
[1764591236043,1.42610193,2823.9,2823.8,0.001]
[1764591237316,5.48671066,2823.9,2823.8,0.001]
[1764591238251,6.31220271,2823.9,2823.8,0.001]
[1764591238656,11.88268471,2823.9,2823.8,0.001]
[1764591240623,8.34148283,2823.9,2823.8,0.001]
[1764591240840,5.34573783,2823.9,2823.8,0.001]
[1764591241202,8.65993971,2823.9,2823.8,0.001]
[1764591241323,1.76780478,2823.9,2823.8,0.001]
[1764591241821,1.24839793,2823.9,2823.8,0.001]
[1764591242021,1.65390193,2823.9,2823.8,0.001]
[1764591242219,2.37949604,2823.9,2823.8,0.001]
[1764591242647,5.92069792,2823.9,2823.8,0.001]
[1764591242831,10.64362292,2823.9,2823.8,0.001]
[1764591243030,12.06209383,2823.9,2823.8,0.001]
[1764591244031,12.06209383,2823.9,2822.0,0.1673]
[1764591244230,12.06209383,2823.9,2822.1,0.1749]
[1764591244231,0.2119,2823.1,2822.1,0.1749]
[1764591244430,0.405504,2822.7,2822.1,0.1749]
[1764591244638,0.405504,2822.7,2822.2,0.4536]
[1764591245252,0.405504,2822.7,2822.6,0.4593]
[1764591245458,0.405504,2822.7,2822.2,0.4536]
[1764591246443,0.405504,2822.7,2822.3,7.08641886]
[1764591246744,0.405504,2822.7,2822.3,8.21225164]
[1764591247057,0.405504,2823.0,2822.6,0.4593]
[1764591247259,0.405504,2822.5,2822.1,3.71931289]
[1764591247462,0.865604,2822.2,2822.1,0.001]
[1764591247659,0.865604,2822.2,2822.1,0.6314]
[1764591247660,0.405504,2822.2,2822.1,0.6314]
[1764591247963,0.19979587,2823.0,2822.1,11.71538162]
[1764591248164,0.19979587,2823.2,2822.6,0.4593]
[1764591248347,0.4614,2823.4,2822.7,7.08541466]
[1764591248693,0.66119587,2823.4,2822.7,7.08541466]
[1764591248976,0.405504,2823.3,2822.7,7.08541466]
[1764591249263,0.66119587,2823.4,2822.7,8.14824716]
[1764591249765,0.66119587,2823.6,2822.7,8.60184716]
[1764591250263,0.405504,2823.5,2822.7,8.60184716]
[1764591250466,0.405504,2823.5,2822.7,12.14455449]
[1764591251535,0.866904,2823.5,2822.7,8.14824716]
[1764591251734,0.865604,2822.8,2822.7,3.76970733]
[1764591252061,0.405504,2822.8,2822.7,3.76970733]
[1764591252563,0.405504,2822.8,2822.7,4.22900733]
[1764591253139,0.405504,2822.8,2822.2,4.71483935]
[1764591253140,0.405504,2822.7,2822.1,0.001]
[1764591253465,0.2166,2822.7,2822.1,3.71556054]
[1764591253760,0.622104,2822.7,2822.1,11.21939767]
[1764591254264,0.622104,2822.7,2822.1,7.67593713]
[1764591254656,0.405504,2822.5,2822.1,7.67593713]
[1764591255566,0.09989793,2822.7,2822.2,0.4536]
[1764591255967,0.09989793,2822.7,2822.1,11.21939767]
[1764591255968,0.56129793,2822.7,2822.1,7.67593713]
[1764591256268,0.09989793,2822.7,2822.2,0.79039371]
[1764591256443,0.4601,2822.2,2821.3,0.4536]
[1764591256643,0.405504,2822.1,2821.4,0.4536]
[1764591256843,0.405504,2822.1,2822.0,0.4593]
[1764591257065,0.09989793,2822.5,2822.0,4.0028861]
[1764591257259,0.866904,2822.4,2822.0,7.0871722]
[1764591257666,0.405504,2822.2,2822.0,7.0871722]
[1764591257969,3.77027747,2823.1,2822.0,7.0871722]
[1764591257970,0.09989793,2822.9,2822.1,1.312]
[1764591258264,1.31019408,2824.8,2822.2,0.4593]
[1764591258265,0.4614,2823.1,2822.2,0.4593]
[1764591258464,0.405504,2822.7,2822.2,0.4593]
[1764591258872,0.866904,2822.7,2822.2,0.4593]
[1764591259172,0.866904,2822.7,2822.1,0.1711]
[1764591259341,0.405504,2822.1,2821.9,0.228]
[1764591259671,0.09989793,2822.4,2821.9,0.228]
[1764591260376,0.09989793,2822.5,2821.9,0.6816]
[1764591260560,0.09989793,2822.5,2821.9,0.228]
[1764591260754,0.405504,2822.5,2822.0,0.4536]
[1764591260955,0.405504,2822.5,2822.4,0.4593]
[1764591261155,0.09989793,2822.8,2822.4,0.4593]
[1764591261356,0.09989793,2823.1,2822.4,1.1409]
[1764591261953,0.405504,2823.0,2822.4,1.1409]
[1764591262168,0.09989793,2823.1,2822.4,0.6873]
[1764591262367,0.09989793,2823.1,2822.5,0.4536]
[1764591262569,0.09989793,2823.2,2822.5,0.4536]
[1764591262748,0.56129793,2823.3,2822.5,0.4536]
[1764591262949,0.405504,2823.2,2822.6,10.62849852]
[1764591263153,0.405504,2823.2,2822.7,1.10820985]
[1764591263354,0.09989793,2823.3,2822.7,1.57370985]
[1764591263556,0.09989793,2823.5,2822.8,0.6935]
[1764591263981,0.405504,2823.4,2822.8,0.6935]
[1764591264279,0.28369793,2823.8,2822.9,0.18017099]
[1764591264481,0.28369793,2823.8,2822.9,0.64567099]
[1764591264656,0.28369793,2823.8,2823.0,0.228]
[1764591264657,0.09989793,2823.6,2823.0,0.228]
[1764591265061,0.6498,2823.8,2823.2,10.6262397]
[1764591265062,0.405504,2823.5,2823.2,10.6262397]
[1764591265262,0.466,2824.4,2823.3,1.07935397]
[1764591265483,0.19979587,2824.2,2823.4,0.7165]
[1764591265780,0.19979587,2824.2,2823.4,1.182]
[1764591265781,0.09989793,2824.2,2823.4,1.182]
[1764591265969,0.09989793,2824.2,2823.5,0.4655]
[1764591266171,0.09989793,2824.3,2823.4,0.228]
[1764591266375,0.09989793,2824.3,2823.4,0.6935]
[1764591266584,0.09989793,2824.3,2823.5,0.1772854]
[1764591266963,0.405504,2824.2,2823.5,0.1772854]
[1764591267156,0.405504,2824.2,2823.6,7.08315624]
[1764591267776,0.60529987,2824.0,2823.6,7.31115624]
[1764591268086,0.09989793,2824.5,2823.7,0.4714]
[1764591268284,0.09989793,2824.5,2824.0,0.4886]
[1764591268663,0.55229793,2824.5,2823.7,0.4714]
[1764591268860,0.405504,2824.4,2823.6,10.85273436]
[1764591269059,0.857904,2824.4,2823.6,10.85273436]
[1764591269568,0.405504,2824.1,2823.6,10.85273436]
[1764591269914,3.54220634,2824.7,2823.5,3.54163887]
[1764591269915,0.405504,2823.6,2823.5,3.54163887]
[1764591270407,0.405504,2823.5,2823.2,3.54201312]
[1764591270576,0.405504,2823.5,2823.3,0.228]
[1764591270774,0.405504,2823.5,2823.2,7.08409302]
[1764591271089,0.405504,2823.5,2823.2,7.31209302]
[1764591271460,0.405504,2823.5,2823.2,7.78349302]
[1764591271758,0.405504,2823.5,2823.4,0.4886]
[1764591272205,0.405504,2823.8,2823.4,0.4886]
[1764591272581,0.405504,2823.8,2823.2,12.00346879]
[1764591272582,0.405504,2824.3,2823.7,0.4886]
[1764591272783,0.09989793,2824.1,2823.6,0.228]
[1764591273165,0.55229793,2824.1,2823.6,0.228]
[1764591274272,0.55229793,2824.1,2823.7,7.0829054]
[1764591274460,0.405504,2824.3,2823.7,10.6243581]
[1764591274461,0.50540193,2824.3,2823.7,10.6243581]
[1764591274668,0.09989793,2824.4,2823.7,10.6243581]
[1764591274864,0.09989793,2824.5,2823.8,1.55663581]
[1764591275078,0.405504,2824.4,2823.8,1.55663581]
[1764591275702,0.002,2824.7,2823.9,0.4714]
[1764591275908,0.405504,2824.5,2824.0,0.227]
[1764591276306,0.405504,2824.5,2824.1,7.08190218]
[1764591276904,0.405504,2824.1,2823.1,0.1673]
[1764591277117,0.894004,2824.2,2823.4,0.228]
[1764591277118,0.19979587,2824.2,2823.4,0.228]
[1764591277421,0.405504,2824.3,2823.4,1.36056315]
[1764591277634,0.405504,2824.3,2823.4,1.83196315]
[1764591277908,0.405504,2824.3,2823.5,0.4714]
[1764591279209,0.405504,2824.3,2823.6,10.62473436]
[1764591279980,0.405504,2824.1,2823.6,10.62473436]
[1764591280179,0.405504,2823.6,2823.1,3.54214676]
[1764591280412,10.62220485,2824.3,2823.1,3.54214676]
[1764591280413,0.09989793,2824.2,2823.5,0.4886]
[1764591280624,0.09989793,2824.2,2823.1,11.14807218]
[1764591280625,0.09989793,2823.7,2823.1,7.25165213]
[1764591280834,0.405504,2823.7,2823.3,0.228]
[1764591281111,0.405504,2824.1,2823.3,0.228]
[1764591281314,0.405504,2824.1,2823.4,10.625487]
[1764591281477,0.404704,2824.1,2823.4,10.625487]
[1764591281815,0.404704,2824.1,2823.4,7.083658]
[1764591282113,0.404704,2824.1,2823.4,10.625487]
[1764591282418,0.404704,2824.1,2823.4,7.083658]
[1764591282913,0.404704,2824.1,2823.4,11.98541138]
[1764591283211,0.09989793,2823.9,2823.4,11.51401138]
[1764591283623,0.405504,2823.8,2823.4,11.98541138]
[1764591284213,0.405504,2823.9,2823.4,8.44358238]
[1764591284599,0.405504,2823.9,2823.4,11.98541138]
[1764591284823,0.405504,2824.2,2823.5,1.69274114]
[1764591285008,0.405504,2824.2,2823.5,0.4714]
[1764591285384,0.405504,2824.2,2823.6,10.62473436]
[1764591285585,0.405504,2824.2,2823.7,0.228]
[1764591286408,0.002,2824.5,2823.7,0.6994]
[1764591287519,0.002,2824.5,2823.8,14.63670912]
[1764591287731,0.002,2824.5,2823.9,1.48647091]
[1764591288187,0.002,2824.5,2824.0,0.4714]
[1764591288388,0.002,2824.5,2824.1,0.227]
[1764591288722,0.002,2824.5,2824.4,0.4886]
[1764591289032,0.002,2824.5,2824.1,0.8657]
[1764591289320,0.002,2824.5,2824.1,1.10091709]
[1764591290299,0.002,2824.5,2824.2,7.08165144]
[1764591292100,0.002,2824.5,2824.3,0.227]
[1764591292301,0.002,2824.5,2824.4,3.54057498]
[1764591292495,0.002,2824.5,2824.4,4.02917498]
[1764591293417,0.002,2824.5,2824.4,5.30006092]
[1764591293625,0.002,2824.5,2824.4,4.80886092]
[1764591294414,0.002,2824.5,2824.4,4.02917498]
[1764591296324,0.002,2824.5,2824.4,3.54057498]
[1764591296498,0.405504,2824.4,2824.1,3.54092482]
[1764591296699,0.405504,2824.4,2824.2,0.227]
[1764591297201,0.405504,2824.4,2824.3,0.4585]
[1764591297409,0.002,2824.5,2824.3,1.10814248]
[1764591297617,0.002,2824.5,2824.4,0.4585]
[1764591298531,0.002,2824.5,2824.4,3.99907498]
[1764591299732,0.002,2824.5,2824.4,4.49027498]
[1764591302331,0.002,2824.5,2824.4,3.99907498]
[1764591302537,0.002,2824.5,2824.4,4.22607498]
[1764591304008,0.002,2824.5,2824.4,5.09413502]
[1764591304519,0.0012,2824.5,2824.4,5.09413502]
[1764591304727,0.0012,2824.5,2824.4,5.58533502]
[1764591306324,0.0012,2824.5,2824.4,6.31092913]
[1764591312162,0.002,2825.4,2824.4,6.31092913]
[1764591312326,0.405504,2825.4,2825.0,0.4585]
[1764591312649,0.002,2825.6,2825.0,0.227]
[1764591312950,0.4964,2825.1,2825.0,3.766823]
[1764591313156,0.4964,2825.1,2825.0,3.539823]
[1764591313357,0.10189793,2825.6,2825.0,10.846469]
[1764591313719,0.407504,2825.6,2825.0,10.846469]
[1764591314120,0.4964,2825.1,2825.0,3.766823]
[1764591315742,0.486,2825.6,2825.0,11.304969]
[1764591315938,0.405504,2825.5,2825.0,11.304969]
[1764591316345,0.484,2825.4,2825.0,10.846469]
[1764591317445,0.484,2825.4,2825.0,11.9311159]
[1764591319555,0.405504,2825.5,2825.0,11.9311159]